[Event "XVI Memorial Lezcano Montalvo 2024"]
[Site "Gran Canaria"]
[Date "2024.03.27"]
[Round "5.17"]
[White "Damia, Angelo"]
[Black "Zhou, Lepu Coco"]
[Result "0-1"]
[ECO "B45"]
[WhiteElo "2240"]
[BlackElo "1980"]
[Annotator "RC"]
[PlyCount "120"]
[EventDate "2024.03.23"]
[EventType "swiss"]
[EventCountry "ESP"]
[SourceTitle "playchess.com"]
[Source "ChessBase"]
[SourceQuality "1"]
[TimeControl "5400+30"]

1. e4 {[%emt 0:00:29]} c5 {[%emt 0:00:12]} 2. Nf3 {[%emt 0:00:04]} e6 {[%emt 0:00:09]} 3. d4 {[%emt 0:00:03]} cxd4 {[%emt 0:00:12]} 4. Nxd4 {[%emt 0:00:03]} Nf6 {[%emt 0:00:16]} 5. Nc3 {[%emt 0:00:30]} Nc6 {[%emt 0:00:24]} 6. a3 {[%emt 0:04:29]} d5 {[%emt 0:01:56]} 7. Bb5 {[%emt 0:00:48]} Bd7 {[%emt 0:03:34]} 8. exd5 {[%emt 0:00:11]} Nxd5 {[%emt 0:04:38]} 9. Nxd5 {[%emt 0:00:30]} exd5 {[%emt 0:01:47]} 10. O-O {[%emt 0:02:14]} Be7 {[%emt 0:01:44]} 11. Be3 {[%emt 0:10:56]} Bf6 {[%emt 0:05:34]} 12. Nb3 {[%emt 0:19:13]} d4 {[%emt 0:17:44]} 13. Bxd4 {[%emt 0:04:19]} Nxd4 {[%emt 0:03:09]} 14. Nxd4 {[%emt 0:00:07]} O-O {[%emt 0:00:50]} 15. Bxd7 {[%emt 0:00:35]} Qxd7 {[%emt 0:00:07]} 16. c3 {[%emt 0:00:51]} Rfe8 {[%emt 0:05:58]} 17. Nb3 {[%emt 0:07:24]} Qb5 {[%emt 0:01:36]} 18. a4 {[%emt 0:00:01]} Qc4 {[%emt 0:00:49]} 19. Nd2 {[%emt 0:01:50]} Qa6 {[%emt 0:06:27]} 20. Re1 {[%emt 0:00:17]} Red8 {[%emt 0:02:24]} 21. Qe2 {[%emt 0:03:01]} Qc6 {[%emt 0:03:08]} 22. Nf3 {[%emt 0:05:43]} Rd5 {[%emt 0:03:16]} 23. Qc2 {[%emt 0:08:36]} g6 {[%emt 0:04:42]} 24. Re4 {[%emt 0:07:07]} Rad8 {[%emt 0:01:38]} 25. Rae1 {[%emt 0:00:31]} Kg7 {[%emt 0:00:53]} 26. c4 {[%emt 0:04:08]} Rd3 {[%emt 0:00:42]} 27. R4e3 {[%emt 0:00:07]} Qd7 {[%emt 0:03:54]} 28. g3 {[%emt 0:10:45]} Qf5 {[%emt 0:06:44]} 29. Rxd3 {[%emt 0:01:00]} Qxd3 {[%emt 0:00:06]} 30. Qxd3 {[%emt 0:03:21]} Rxd3 {[%emt 0:00:05]} 31. Re3 {[%emt 0:01:27]} Rxe3 {[%emt 0:00:44]} 32. fxe3 {[%emt 0:00:05]} Bxb2 {[%emt 0:00:07]} 33. Ng5 {[%emt 0:00:51]} Ba3 {[%emt 0:04:34]} 34. Kf2 {[%emt 0:00:10]} h6 {[%emt 0:00:29]} 35. Ne4 {[%emt 0:00:08]} f5 {[%emt 0:00:17]} 36. Nc3 {[%emt 0:00:00]} Kf6 {[%emt 0:00:22]} 37. e4 {[%emt 0:01:21]} Ke5 {[%emt 0:04:59]} 38. exf5 {[%emt 0:00:07]} gxf5 {[%emt 0:01:05]} 39. Ke3 {[%emt 0:00:40]} Bc5+ {[%emt 0:00:08]} 40. Kd3 {[%emt 0:00:06]} Bg1 {[%emt 0:00:13]} 41. h3 {[%emt 0:00:11]} Bf2 {[%emt 0:00:40]} 42. g4 {[%emt 0:01:37]} fxg4 {[%emt 0:00:20]} 43. hxg4 {[%emt 0:00:01]} Kf4 {[%emt 0:00:56]} 44. Ne4 {[%emt 0:00:46]} Bg1 {[%emt 0:02:14]} 45. Nd6 {[%emt 0:03:37]} Kxg4 {[%emt 0:01:50]} 46. Nxb7 {[%emt 0:00:01]} h5 {[%emt 0:00:28]} 47. c5 {[%emt 0:02:28]} Kf5 {[%emt 0:00:34]} 48. c6 {[%emt 0:00:19]} Ke6 {[%emt 0:00:23]} 49. Ke4 {[%emt 0:00:38]} Bb6 {[%emt 0:00:56]} 50. a5 {[%emt 0:00:49]} Bc7 {[%emt 0:00:04]} 51. a6 {[%emt 0:00:40]} h4 {[%emt 0:00:47]} 52. Kf3 {[%emt 0:00:35]} h3 {[%emt 0:00:24]} 53. Nc5+ {[%emt 0:00:33]} Kd5 {[%emt 0:00:07]} 54. Nd3 {[%emt 0:00:17]} Kxc6 {[%emt 0:00:06]} 55. Nf2 {[%emt 0:00:09]} h2 {[%emt 0:00:10]} 56. Kg2 {[%emt 0:00:03]} Kb5 {[%emt 0:00:17]} 57. Ne4 {[%emt 0:00:13]} Kxa6 {[%emt 0:00:10]} 58. Nc3 {[%emt 0:00:13]} Ka5 {[%emt 0:01:31]} 59. Nd5 {[%emt 0:00:31]} Be5 {[%emt 0:00:43]} 60. Ne7 {[%emt 0:00:19]} Kb5 {[%emt 0:10:14]} 0-1

[Event "XVI Memorial Lezcano Montalvo 2024"]
[Site "Gran Canaria"]
[Date "2024.03.27"]
[Round "5.18"]
[White "Estremera Panos, Sergio"]
[Black "Martin Ramos, Daniel"]
[Result "1/2-1/2"]
[ECO "E51"]
[WhiteElo "2233"]
[BlackElo "1961"]
[Annotator "RC"]
[PlyCount "47"]
[EventDate "2024.03.23"]
[EventType "swiss"]
[EventCountry "ESP"]
[SourceTitle "playchess.com"]
[Source "ChessBase"]
[SourceQuality "1"]
[TimeControl "5400+30"]

1. d4 {[%emt 0:00:07]} Nf6 {[%emt 0:00:06]} 2. c4 {[%emt 0:00:07]} e6 {[%emt 0:00:06]} 3. Nc3 {[%emt 0:00:19]} Bb4 {[%emt 0:00:06]} 4. e3 {[%emt 0:00:27]} O-O {[%emt 0:00:20]} 5. Bd2 {[%emt 0:00:34]} d5 {[%emt 0:00:13]} 6. Nf3 {[%emt 0:00:18]} c5 {[%emt 0:00:40]} 7. a3 {[%emt 0:00:33]} Bxc3 {[%emt 0:03:12]} 8. Bxc3 {[%emt 0:01:23]} Ne4 {[%emt 0:00:06]} 9. Rc1 {[%emt 0:00:11]} Nxc3 {[%emt 0:01:41]} 10. Rxc3 {[%emt 0:00:07]} cxd4 {[%emt 0:08:25]} 11. Nxd4 {[%emt 0:00:17]} dxc4 {[%emt 0:00:30]} 12. Bxc4 {[%emt 0:03:22]} e5 {[%emt 0:00:07]} 13. Nb5 {[%emt 0:11:18]} Qxd1+ {[%emt 0:00:05]} 14. Kxd1 {[%emt 0:00:05]} Nc6 {[%emt 0:00:08]} 15. Ke2 {[%emt 0:00:52]} Rd8 {[%emt 0:03:14]} 16. Rd1 {[%emt 0:09:57]} Rxd1 {[%emt 0:00:10]} 17. Kxd1 {[%emt 0:00:03]} Bf5 {[%emt 0:02:32]} 18. Ke1 {[%emt 0:21:41]} Rd8 {[%emt 0:00:07]} 19. Rc1 {[%emt 0:00:15]} Kf8 {[%emt 0:04:06]} 20. Rd1 {[%emt 0:00:25]} Rxd1+ {[%emt 0:00:17]} 21. Kxd1 {[%emt 0:00:02]} Ke7 {[%emt 0:00:19]} 22. Bd5 {[%emt 0:04:41]} Bd7 {[%emt 0:00:25]} 23. Kd2 {[%emt 0:02:13]} a6 {[%emt 0:00:57]} 24. Nc3 {[%emt 0:00:11]} 1/2-1/2

[Event "XVI Memorial Lezcano Montalvo 2024"]
[Site "Gran Canaria"]
[Date "2024.03.27"]
[Round "5.19"]
[White "Guerrero Orihuela, Jose Luis"]
[Black "Tytynnik, Artem"]
[Result "0-1"]
[ECO "E30"]
[WhiteElo "1948"]
[BlackElo "2197"]
[Annotator "RC"]
[PlyCount "60"]
[EventDate "2024.03.23"]
[EventType "swiss"]
[EventCountry "ESP"]
[SourceTitle "playchess.com"]
[Source "ChessBase"]
[SourceQuality "1"]
[TimeControl "5400+30"]

1. d4 {[%emt 0:00:03]} Nf6 {[%emt 0:12:39]} 2. c4 {[%emt 0:00:13]} e6 {[%emt 0:00:27]} 3. Nc3 {[%emt 0:00:20]} Bb4 {[%emt 0:00:12]} 4. Bg5 {[%emt 0:00:33]} c5 {[%emt 0:00:41]} 5. d5 {[%emt 0:00:07]} d6 {[%emt 0:01:17]} 6. e3 {[%emt 0:00:06]} Bxc3+ {[%emt 0:00:42]} 7. bxc3 {[%emt 0:00:10]} e5 {[%emt 0:00:27]} 8. f3 {[%emt 0:04:13]} Nbd7 {[%emt 0:05:15]} 9. Bd3 {[%emt 0:02:05]} Qe7 {[%emt 0:01:39]} 10. Ne2 {[%emt 0:01:54]} h6 {[%emt 0:01:32]} 11. Bxf6 {[%emt 0:00:56]} Nxf6 {[%emt 0:00:08]} 12. Ng3 {[%emt 0:00:11]} h5 {[%emt 0:02:28]} 13. h4 {[%emt 0:11:44]} g6 {[%emt 0:03:45]} 14. Qc2 {[%emt 0:11:37]} Qf8 {[%emt 0:03:09]} 15. O-O {[%emt 0:11:38]} Qe7 {[%emt 0:05:13]} 16. Qf2 {[%emt 0:04:55]} Rg8 {[%emt 0:02:12]} 17. Be2 {[%emt 0:03:18]} Bd7 {[%emt 0:06:38]} 18. Rab1 {[%emt 0:06:18]} O-O-O {[%emt 0:00:37]} 19. a4 {[%emt 0:11:21]} g5 {[%emt 0:01:50]} 20. hxg5 {[%emt 0:00:54]} Rxg5 {[%emt 0:00:16]} 21. f4 {[%emt 0:00:08]} exf4 {[%emt 0:03:58]} 22. Qxf4 {[%emt 0:01:14]} Rdg8 {[%emt 0:06:05]} 23. Qxf6 {[%emt 0:00:30]} Qxe3+ {[%emt 0:01:18]} 24. Qf2 {[%emt 0:00:15]} Qxg3 {[%emt 0:02:25]} 25. Bf3 {[%emt 0:05:31]} Qxf2+ {[%emt 0:03:36]} 26. Rxf2 {[%emt 0:00:13]} Re8 {[%emt 0:04:42]} 27. Rfb2 {[%emt 0:01:35]} Bf5 {[%emt 0:00:24]} 28. Rxb7 {[%emt 0:04:10]} Bxb1 {[%emt 0:00:09]} 29. Rxb1 {[%emt 0:00:03]} Re3 {[%emt 0:00:21]} 30. Rc1 {[%emt 0:00:45]} Rxf3 {[%emt 0:00:03]} 0-1

[Event "XVI Memorial Lezcano Montalvo 2024"]
[Site "Gran Canaria"]
[Date "2024.03.27"]
[Round "5.20"]
[White "Ramos Santana, Marcelino"]
[Black "Morales Camacho, Julian"]
[Result "1-0"]
[ECO "B00"]
[WhiteElo "1897"]
[BlackElo "2186"]
[Annotator "RC"]
[PlyCount "86"]
[EventDate "2024.03.23"]
[EventType "swiss"]
[EventCountry "ESP"]
[SourceTitle "playchess.com"]
[Source "ChessBase"]
[SourceQuality "1"]
[TimeControl "5400+30"]

1. e4 {[%emt 1:31:00]} e6 {[%emt 0:01:23]} 2. Nf3 {[%emt 0:00:00]} b6 {[%emt 0:03:03]} 3. d4 {[%emt 0:00:00]} Bb7 {[%emt 0:00:04]} 4. Bd3 {[%emt 0:00:00]} d6 {[%emt 0:00:50]} 5. O-O {[%emt 0:00:00]} Nd7 {[%emt 0:00:17]} 6. Re1 {[%emt 0:00:00]} g6 {[%emt 0:00:38]} 7. Nbd2 {[%emt 0:00:00]} Bg7 {[%emt 0:00:16]} 8. Nf1 {[%emt 0:00:00]} Ne7 {[%emt 0:00:32]} 9. Be3 {[%emt 0:00:00]} h6 {[%emt 0:03:58]} 10. c3 {[%emt 0:00:00]} a6 {[%emt 0:01:12]} 11. a4 {[%emt 0:05:00]} c5 {[%emt 0:02:03]} 12. Ng3 {[%emt 0:00:00]} Qc7 {[%emt 0:05:44]} 13. Qe2 {[%emt 0:00:00]} e5 {[%emt 0:01:55]} 14. Rac1 {[%emt 0:00:00]} O-O {[%emt 0:02:44]} 15. Nh4 {[%emt 0:00:00]} d5 {[%emt 0:03:41]} 16. Qd2 {[%emt 0:00:00]} dxe4 {[%emt 0:01:48]} 17. Bb1 {[%emt 0:00:00]} Kh7 {[%emt 0:03:51]} 18. f4 {[%emt 0:00:00]} exd4 {[%emt 0:04:44]} 19. cxd4 {[%emt 0:00:00]} f5 {[%emt 0:00:17]} 20. Ne2 {[%emt 0:00:00]} Nd5 {[%emt 0:03:59]} 21. g4 {[%emt 0:00:00]} Qd8 {[%emt 0:02:50]} 22. Ng2 {[%emt 0:00:00]} Qe7 {[%emt 0:03:32]} 23. Kh1 {[%emt 0:00:00]} Rac8 {[%emt 0:03:02]} 24. gxf5 {[%emt 0:00:00]} gxf5 {[%emt 0:00:09]} 25. Rg1 {[%emt 0:00:00]} N7f6 {[%emt 0:01:52]} 26. h3 {[%emt 0:00:00]} Nh5 {[%emt 0:03:42]} 27. Kh2 {[%emt 0:00:00]} Rfd8 {[%emt 0:00:47]} 28. Qe1 {[%emt 0:00:00]} Bf6 {[%emt 0:05:52]} 29. dxc5 {[%emt 0:00:00]} bxc5 {[%emt 0:01:04]} 30. Qf2 {[%emt 0:00:00]} Nxe3 {[%emt 0:02:09]} 31. Nxe3 {[%emt 0:00:00]} Bh4 {[%emt 0:06:24]} 32. Qf1 {[%emt 0:00:00]} Qf6 {[%emt 0:02:44]} 33. Ba2 {[%emt 0:00:00]} Rd2 {[%emt 0:01:25]} 34. Rg2 {[%emt 0:00:00]} Rc7 {[%emt 0:12:48]} 35. Nc4 {[%emt 0:00:00]} Rxe2 {[%emt 0:01:44]} 36. Rxe2 {[%emt 0:00:00]} Bg3+ {[%emt 0:00:19]} 37. Kg1 {[%emt 0:00:00]} Nxf4 {[%emt 0:03:41]} 38. Ne3 {[%emt 0:00:00]} Rg7 {[%emt 0:01:07]} 39. Kh1 {[%emt 0:00:00]} Nxe2 {[%emt 0:01:31]} 40. Qxe2 {[%emt 0:00:00]} f4 {[%emt 0:00:53]} 41. Ng4 {[%emt 0:00:00]} Qh4 {[%emt 0:01:15]} 42. Kg1 {[%emt 0:01:43]} Qxh3 {[%emt 0:02:53]} 43. Nf6+ {[%emt 0:00:14]} Kh8 {[%emt 0:00:20]} 1-0

[Event "XVI Memorial Lezcano Montalvo 2024"]
[Site "Gran Canaria"]
[Date "2024.03.27"]
[Round "5.21"]
[White "Gonzalez Martinez, Miguel Angel"]
[Black "de Leon Navarro, Claudio"]
[Result "1-0"]
[ECO "B01"]
[WhiteElo "2158"]
[BlackElo "1931"]
[Annotator "RC"]
[PlyCount "70"]
[EventDate "2024.03.23"]
[EventType "swiss"]
[EventCountry "ESP"]
[SourceTitle "playchess.com"]
[Source "ChessBase"]
[SourceQuality "1"]
[TimeControl "5400+30"]

1. e4 {[%emt 0:00:30]} d5 {[%emt 0:03:36]} 2. exd5 {[%emt 0:00:08]} Qxd5 {[%emt 0:00:11]} 3. Nc3 {[%emt 0:00:22]} Qe5+ {[%emt 0:00:15]} 4. Nge2 {[%emt 0:03:24]} Nf6 {[%emt 0:06:15]} 5. d3 {[%emt 0:17:33]} c6 {[%emt 0:07:16]} 6. Bf4 {[%emt 0:00:51]} Qa5 {[%emt 0:02:18]} 7. h3 {[%emt 0:02:38]} e5 {[%emt 0:06:05]} 8. Bd2 {[%emt 0:02:56]} Qb6 {[%emt 0:04:24]} 9. Na4 {[%emt 0:09:42]} Qc7 {[%emt 0:01:03]} 10. Ng3 {[%emt 0:01:53]} Be7 {[%emt 0:03:26]} 11. Be2 {[%emt 0:02:26]} O-O {[%emt 0:02:02]} 12. O-O {[%emt 0:00:24]} Nd5 {[%emt 0:07:44]} 13. Bf3 {[%emt 0:05:22]} Be6 {[%emt 0:05:35]} 14. Re1 {[%emt 0:06:42]} Nd7 {[%emt 0:02:42]} 15. c4 {[%emt 0:03:14]} N5f6 {[%emt 0:08:11]} 16. b4 {[%emt 0:01:06]} Rad8 {[%emt 0:04:18]} 17. Qc2 {[%emt 0:02:41]} b6 {[%emt 0:14:48]} 18. Bc3 {[%emt 0:02:36]} c5 {[%emt 0:02:13]} 19. b5 {[%emt 0:01:18]} Ne8 {[%emt 0:04:28]} 20. Nb2 {[%emt 0:03:13]} f6 {[%emt 0:01:03]} 21. a4 {[%emt 0:01:37]} Nd6 {[%emt 0:00:48]} 22. a5 {[%emt 0:00:31]} Nf5 {[%emt 0:00:56]} 23. Bd5 {[%emt 0:01:50]} Nd4 {[%emt 0:01:37]} 24. Bxd4 {[%emt 0:00:01]} Bxd5 {[%emt 0:00:18]} 25. cxd5 {[%emt 0:00:02]} exd4 {[%emt 0:01:04]} 26. Rxe7 {[%emt 0:00:16]} Qd6 {[%emt 0:00:31]} 27. Rxg7+ {[%emt 0:00:42]} Kh8 {[%emt 0:00:24]} 28. Qe2 {[%emt 0:03:11]} Qe5 {[%emt 0:04:47]} 29. Qxe5 {[%emt 0:04:38]} fxe5 {[%emt 0:00:08]} 30. Re7 {[%emt 0:00:26]} Nf6 {[%emt 0:00:32]} 31. axb6 {[%emt 0:08:27]} Nxd5 {[%emt 0:01:56]} 32. Rexa7 {[%emt 0:00:49]} Nxb6 {[%emt 0:00:42]} 33. Rb7 {[%emt 0:00:26]} c4 {[%emt 0:01:00]} 34. Raa7 {[%emt 0:01:18]} Nd7 {[%emt 0:00:28]} 35. Nxc4 {[%emt 0:00:59]} Nb8 {[%emt 0:04:56]} 1-0

[Event "XVI Memorial Lezcano Montalvo 2024"]
[Site "Gran Canaria"]
[Date "2024.03.27"]
[Round "5.22"]
[White "Marrero Cardenes, Agustin"]
[Black "Sanchez Gonzalez, Diego"]
[Result "1-0"]
[ECO "D02"]
[WhiteElo "2093"]
[BlackElo "1908"]
[Annotator "NA RC"]
[PlyCount "87"]
[EventDate "2024.03.23"]
[EventType "swiss"]
[EventCountry "ESP"]
[SourceTitle "playchess.com"]
[Source "ChessBase"]
[SourceQuality "1"]
[TimeControl "5400+30"]

1. d4 {[%emt 0:00:03]} d5 {[%emt 0:00:05]} 2. Nf3 {[%emt 0:00:07]} e6 {[%emt 0:00:08]} 3. Bf4 {[%emt 0:00:29]} Nf6 {[%emt 0:01:17]} 4. e3 {[%emt 0:00:09]} Bd6 {[%emt 0:00:34]} 5. Nbd2 {[%emt 0:01:16]} Bxf4 {[%emt 0:14:33]} 6. exf4 {[%emt 0:00:08]} O-O {[%emt 0:10:24]} 7. Bd3 {[%emt 0:00:15]} c5 {[%emt 0:02:16]} 8. c3 {[%emt 0:00:33]} cxd4 {[%emt 0:06:21]} 9. Nxd4 {[%emt 0:00:22]} Nc6 {[%emt 0:06:26]} 10. N2f3 {[%emt 0:06:06]} Qd6 {[%emt 0:04:05]} 11. g3 {[%emt 0:01:39]} Rd8 {[%emt 0:07:58]} 12. O-O {[%emt 0:04:51]} a6 {[%emt 0:02:58]} 13. Re1 {[%emt 0:01:19]} g6 {[%emt 0:04:06]} 14. a4 {[%emt 0:02:01]} Bd7 {[%emt 0:07:25]} 15. Qe2 {[%emt 0:05:11]} Rac8 {[%emt 0:02:04]} 16. a5 {[%emt 0:05:33]} h5 {[%emt 0:07:46]} 17. Nxc6 {[%emt 0:15:21]} Bxc6 {[%emt 0:00:43]} 18. Nd4 {[%emt 0:00:08]} Bd7 {[%emt 0:00:50]} 19. Qf3 {[%emt 0:04:47]} Kg7 {[%emt 0:02:10]} 20. h3 {[%emt 0:03:24]} Re8 {[%emt 0:03:08]} 21. Re5 {[%emt 0:05:41]} Rcd8 {[%emt 0:03:05]} 22. Rae1 {[%emt 0:00:52]} Bc8 {[%emt 0:00:36]} 23. Qe2 {[%emt 0:03:41]} Qc7 {[%emt 0:03:57]} 24. Nb3 {[%emt 0:03:45]} h4 {[%emt 0:01:11]} 25. Qe3 {[%emt 0:02:26]} hxg3 {[%emt 0:01:24]} 26. Qxg3 {[%emt 0:02:37]} Rh8 {[%emt 0:00:16]} 27. Nd4 {[%emt 0:11:48]} Rh5 {[%emt 0:05:59]} 28. Nf3 {[%emt 0:19:58]} Rdh8 {[%emt 0:00:39]} 29. Ng5 {[%emt 0:00:00]} R8h6 {[%emt 0:01:44]} 30. Qe3 {[%emt 0:00:00]} Rh4 {[%emt 0:00:41]} 31. Qd4 {[%emt 0:00:00]} Qd8 {[%emt 0:00:39]} 32. c4 {[%emt 0:00:00]} Kg8 {[%emt 0:00:17]} 33. Bf1 {[%emt 0:00:00]} Nh5 {[%emt 0:00:25]} 34. cxd5 {[%emt 0:00:56]} Nxf4 {[%emt 0:00:48]} 35. R1e4 {[%emt 0:00:55]} Qf6 {[%emt 0:00:17]} 36. Qc3 {[%emt 0:00:59]} Bd7 {[%emt 0:00:20]} 37. dxe6 {[%emt 0:00:29]} Nxe6 {[%emt 0:00:44]} 38. Nxe6 {[%emt 0:00:42]} Bxe6 {[%emt 0:00:14]} 39. Rxe6 {[%emt 0:00:52]} Qg5+ {[%emt 0:00:20]} 40. Bg2 {[%emt 0:00:08]} fxe6 {[%emt 0:00:28]} 41. Rxe6 {[%emt 0:00:29]} Qd8 {[%emt 0:00:31]} 42. Qe5 {[%emt 0:00:36]} Kf7 {[%emt 0:00:38]} 43. Bd5 {[%emt 0:00:23]} Rxh3 {[%emt 0:00:58]} 44. Re7+ {[%emt 0:00:07]} 1-0

[Event "XVI Memorial Lezcano Montalvo 2024"]
[Site "Gran Canaria"]
[Date "2024.03.27"]
[Round "5.23"]
[White "Perez Bolanos, Joel"]
[Black "Quiceno Ramirez, Edwin Alejandro"]
[Result "0-1"]
[ECO "E06"]
[WhiteElo "2046"]
[BlackElo "1888"]
[Annotator "RC"]
[PlyCount "112"]
[EventDate "2024.03.23"]
[EventType "swiss"]
[EventCountry "ESP"]
[SourceTitle "playchess.com"]
[Source "ChessBase"]
[SourceQuality "1"]
[TimeControl "5400+30"]

1. d4 {[%emt 0:00:03]} d5 {[%emt 0:00:50]} 2. c4 {[%emt 0:01:20]} e6 {[%emt 0:00:46]} 3. Nf3 {[%emt 0:00:06]} Nf6 {[%emt 0:00:04]} 4. g3 {[%emt 0:00:07]} Be7 {[%emt 0:00:09]} 5. Bg2 {[%emt 0:00:05]} O-O {[%emt 0:00:08]} 6. O-O {[%emt 0:00:05]} c6 {[%emt 0:00:03]} 7. Qc2 {[%emt 0:00:06]} b6 {[%emt 0:00:07]} 8. Nbd2 {[%emt 0:00:05]} Bb7 {[%emt 0:00:07]} 9. e4 {[%emt 0:00:05]} Na6 {[%emt 0:00:04]} 10. e5 {[%emt 0:00:06]} Nd7 {[%emt 0:00:34]} 11. a3 {[%emt 0:00:14]} c5 {[%emt 0:00:14]} 12. dxc5 {[%emt 0:00:05]} bxc5 {[%emt 0:03:33]} 13. Re1 {[%emt 0:00:37]} Nc7 {[%emt 0:06:54]} 14. h4 {[%emt 0:00:18]} Nb6 {[%emt 0:04:57]} 15. b3 {[%emt 0:05:13]} f5 {[%emt 0:24:21]} 16. Nf1 {[%emt 0:22:16]} d4 {[%emt 0:07:33]} 17. Bf4 {[%emt 0:02:49]} Qe8 {[%emt 0:05:56]} 18. Rab1 {[%emt 0:08:04]} Be4 {[%emt 0:05:52]} 19. Rxe4 {[%emt 0:00:10]} fxe4 {[%emt 0:00:03]} 20. Qxe4 {[%emt 0:00:10]} Qg6 {[%emt 0:00:02]} 21. Qxg6 {[%emt 0:01:25]} hxg6 {[%emt 0:00:20]} 22. N1d2 {[%emt 0:05:32]} Rab8 {[%emt 0:00:27]} 23. Bg5 {[%emt 0:01:14]} Kf7 {[%emt 0:11:57]} 24. Bf1 {[%emt 0:06:52]} Nc8 {[%emt 0:05:32]} 25. Ne4 {[%emt 0:02:08]} Na6 {[%emt 0:04:08]} 26. Ne1 {[%emt 0:03:10]} Rd8 {[%emt 0:03:17]} 27. Nd3 {[%emt 0:01:49]} Bxg5 {[%emt 0:08:58]} 28. Nxg5+ {[%emt 0:00:45]} Ke7 {[%emt 0:00:28]} 29. Nf4 {[%emt 0:04:53]} Rd7 {[%emt 0:03:08]} 30. Nxg6+ {[%emt 0:01:48]} Ke8 {[%emt 0:00:13]} 31. Nf4 {[%emt 0:06:19]} Rdb7 {[%emt 0:00:51]} 32. b4 {[%emt 0:08:25]} cxb4 {[%emt 0:00:20]} 33. axb4 {[%emt 0:00:06]} Nxb4 {[%emt 0:00:29]} 34. Ngxe6 {[%emt 0:00:55]} Nc6 {[%emt 0:00:22]} 35. Re1 {[%emt 0:02:30]} Rb1 {[%emt 0:00:31]} 36. Re4 {[%emt 0:00:06]} a5 {[%emt 0:02:49]} 37. Nxg7+ {[%emt 0:08:12]} Kf7 {[%emt 0:00:26]} 38. Nf5 {[%emt 0:02:06]} N8e7 {[%emt 0:00:34]} 39. Nxd4 {[%emt 0:02:24]} a4 {[%emt 0:00:57]} 40. Nxc6 {[%emt 0:01:29]} Nxc6 {[%emt 0:00:35]} 41. e6+ {[%emt 0:00:25]} Kf6 {[%emt 0:00:55]} 42. Kg2 {[%emt 0:02:46]} a3 {[%emt 0:00:28]} 43. Nd5+ {[%emt 0:00:02]} Kg7 {[%emt 0:00:25]} 44. Nc3 {[%emt 0:01:14]} Rc1 {[%emt 0:00:11]} 45. Re3 {[%emt 0:01:03]} Ne7 {[%emt 0:00:51]} 46. Na2 {[%emt 0:00:47]} Rc2 {[%emt 0:00:41]} 47. Rxa3 {[%emt 0:00:04]} Rbb2 {[%emt 0:00:05]} 48. Nc3 {[%emt 0:02:27]} Rxf2+ {[%emt 0:00:06]} 49. Kg1 {[%emt 0:00:09]} Rf3 {[%emt 0:00:11]} 50. Nd1 {[%emt 0:01:34]} Rxa3 {[%emt 0:00:14]} 51. Nxb2 {[%emt 0:00:02]} Rxg3+ {[%emt 0:00:06]} 52. Kf2 {[%emt 0:00:02]} Rc3 {[%emt 0:00:52]} 53. Bd3 {[%emt 0:00:46]} Rb3 {[%emt 0:00:23]} 54. Ke3 {[%emt 0:00:27]} Rxb2 {[%emt 0:00:06]} 55. Kd4 {[%emt 0:00:42]} Kf6 {[%emt 0:00:22]} 56. h5 {[%emt 0:00:06]} Rh2 {[%emt 0:00:09]} 0-1

[Event "XVI Memorial Lezcano Montalvo 2024"]
[Site "Gran Canaria"]
[Date "2024.03.27"]
[Round "5.24"]
[White "Gonzalez Ortega, Jose Miguel"]
[Black "Blanco Garcia Bajo, David"]
[Result "0-1"]
[ECO "A46"]
[WhiteElo "1858"]
[BlackElo "2004"]
[Annotator "NA RC"]
[PlyCount "86"]
[EventDate "2024.03.23"]
[EventType "swiss"]
[EventCountry "ESP"]
[SourceTitle "playchess.com"]
[Source "ChessBase"]
[SourceQuality "1"]
[TimeControl "5400+30"]

1. Nf3 {[%emt 0:00:36]} Nf6 {[%emt 0:00:08]} 2. d4 {[%emt 0:00:51]} e6 {[%emt 0:00:09]} 3. Bg5 {[%emt 0:01:30]} c5 {[%emt 0:00:10]} 4. e3 {[%emt 0:03:36]} Qb6 {[%emt 0:00:10]} 5. Bxf6 {[%emt 0:03:07]} Qxb2 {[%emt 0:01:14]} 6. Nbd2 {[%emt 0:09:08]} gxf6 {[%emt 0:00:08]} 7. Bd3 {[%emt 0:01:03]} Qb6 {[%emt 0:10:06]} 8. c3 {[%emt 0:03:28]} cxd4 {[%emt 0:07:05]} 9. cxd4 {[%emt 0:00:41]} d5 {[%emt 0:01:29]} 10. Qc2 {[%emt 0:01:10]} Nc6 {[%emt 0:02:10]} 11. a3 {[%emt 0:03:06]} Bd7 {[%emt 0:02:41]} 12. O-O {[%emt 0:00:44]} Rc8 {[%emt 0:05:16]} 13. Qb1 {[%emt 0:01:27]} Qxb1 {[%emt 0:08:18]} 14. Rfxb1 {[%emt 0:00:34]} Na5 {[%emt 0:02:32]} 15. g3 {[%emt 0:03:53]} Rc3 {[%emt 0:05:46]} 16. Bb5 {[%emt 0:01:49]} Rxa3 {[%emt 0:01:00]} 17. Bxd7+ {[%emt 0:03:39]} Kxd7 {[%emt 0:00:02]} 18. Rxa3 {[%emt 0:00:14]} Bxa3 {[%emt 0:00:02]} 19. Nb3 {[%emt 0:01:29]} Nc6 {[%emt 0:04:40]} 20. Ne1 {[%emt 0:02:47]} Bd6 {[%emt 0:01:05]} 21. Nd3 {[%emt 0:00:14]} b6 {[%emt 0:00:31]} 22. Ra1 {[%emt 0:00:54]} a5 {[%emt 0:00:38]} 23. Nb2 {[%emt 0:00:40]} Bb4 {[%emt 0:07:30]} 24. Na4 {[%emt 0:01:06]} Kc7 {[%emt 0:01:17]} 25. Rc1 {[%emt 0:00:28]} Kb7 {[%emt 0:00:34]} 26. Kg2 {[%emt 0:00:40]} Na7 {[%emt 0:00:22]} 27. Kf3 {[%emt 0:02:11]} Rc8 {[%emt 0:06:01]} 28. Rxc8 {[%emt 0:03:45]} Nxc8 {[%emt 0:00:01]} 29. e4 {[%emt 0:00:24]} Kc6 {[%emt 0:03:07]} 30. Ke3 {[%emt 0:02:15]} Nd6 {[%emt 0:06:41]} 31. f3 {[%emt 0:00:22]} Nc4+ {[%emt 0:00:09]} 32. Kd3 {[%emt 0:00:25]} Kb5 {[%emt 0:02:51]} 33. Nc3+ {[%emt 0:01:37]} Bxc3 {[%emt 0:00:03]} 34. Kxc3 {[%emt 0:00:10]} dxe4 {[%emt 0:02:25]} 35. fxe4 {[%emt 0:00:27]} Nd6 {[%emt 0:00:16]} 36. Nd2 {[%emt 0:01:32]} Ka4 {[%emt 0:03:54]} 37. e5 {[%emt 0:00:29]} fxe5 {[%emt 0:00:20]} 38. dxe5 {[%emt 0:00:11]} Nb5+ {[%emt 0:02:40]} 39. Kc4 {[%emt 0:00:23]} Na3+ {[%emt 0:00:14]} 40. Kc3 {[%emt 0:02:51]} b5 {[%emt 0:00:27]} 41. Ne4 {[%emt 0:00:22]} b4+ {[%emt 0:00:47]} 42. Kd4 {[%emt 0:02:01]} Kb3 {[%emt 0:02:20]} 43. Nd6 {[%emt 0:00:48]} Kc2 {[%emt 0:00:24]} 0-1